[Event "28th Bosnjaci Open 2024"]
[Site "Bosnjaci"]
[Date "2024.01.09"]
[Round "9.19"]
[White "Bosnjak, Nino"]
[Black "Drmic, Bozo"]
[Result "0-1"]
[ECO "C41"]
[WhiteElo "2162"]
[BlackElo "2000"]
[Annotator "TA"]
[PlyCount "98"]
[EventDate "2024.01.02"]
[EventType "swiss"]
[EventCountry "CRO"]
[SourceTitle "playchess.com"]
[Source "ChessBase"]
[SourceQuality "1"]
[TimeControl "5400+30"]

{[%evp 17,98,53,49,43,48,10,37,43,62,63,229,238,238,231,124,10,6,0,105,110,559,98,97,85,79,85,91,14,8,16,6,12,15,8,14,17,33,23,30,25,25,0,0,0,56,0,0,-18,-18,-32,-32,-46,-39,-66,-48,-49,-34,-129,-123,-127,-127,-211,-114,-114,-98,-145,-131,-166,-188,-125,0,-170,-176,-274,-259,-244,-240,-420,-318,-455,-437,-393,-347]} 1. d4 {[%emt 0:20:38]} d6 {[%emt 0:00:08]} 2. e4 {[%emt 0:00:13]} Nf6 {[%emt 0:00:05]} 3. Nc3 {[%emt 0:00:10]} Nbd7 {[%emt 0:00:49]} 4. Nf3 {[%emt 0:01:56]} e5 {[%emt 0:00:28]} 5. Bc4 {[%emt 0:02:48]} Be7 {[%emt 0:03:58]} 6. O-O {[%emt 0:03:48]} c6 {[%emt 0:00:26]} 7. a4 {[%emt 0:00:40]} a5 {[%emt 0:00:30]} 8. Re1 {[%emt 0:00:30]} Qc7 {[%emt 0:00:28]} 9. h3 {[%emt 0:07:28]} O-O {[%emt 0:04:22]} 10. Bg5 {[%emt 0:03:07] C41: Philidor Defence.} h6 {[%emt 0:00:30]} 11. Bh4 {[%emt 0:00:30]} exd4 {[%emt 0:05:32]} 12. Nxd4 {[%emt 0:01:54] [#] White is slightly better.} Nc5 $146 {[%emt 0:03:35]} ({Predecessor:} 12... Ne5 13. Bb3 Ng6 14. Bg3 Re8 15. Qe2 Bf8 16. Rad1 Ne5 17. f4 Ned7 18. Qf3 Nc5 {1-0 Pobor,M (2292)-Petrovic,A (2205) Pozarevac Rudar 3rd 2022 (6)}) 13. Bg3 {[%emt 0:53:18]} Re8 $2 {[%emt 0:02:50]} (13... Qb6 $14) 14. e5 $18 {[%emt 0:00:00]} dxe5 {[%emt 0:00:37]} 15. Bxe5 {[%emt 0:00:00]} ({Not} 15. Rxe5 Rd8 $14) 15... Qd8 {[%emt 0:01:06]} (15... Qd7 $18 16. Qf3 Bf8) 16. Bxf6 {[%emt 0:00:00]} (16. Qf3 $16) 16... Bxf6 $11 {[%emt 0:01:07]} 17. Qh5 $1 {[%emt 0:00:00][%csl LRc5,LRf7]} Rf8 {[%emt 0:00:31]} (17... Bxd4 $2 18. Bxf7+ Kh8 19. Rxe8+ $18 (19. Bxe8 Qf6 $18)) (17... Ne6 $11 18. Nxe6 Bxe6 19. Bxe6 Rxe6) 18. Nxc6 $16 {[%emt 0:00:00]} Qb6 {[%emt 0:04:55][%mdl 8192]} (18... bxc6 $16 19. Qxc5 Rb8) 19. Nd5 $2 {[%emt 0:00:00]} (19. Ne7+ $18 Bxe7 20. Nd5 (20. Rxe7 Qxb2 21. Rb1 Qxc3 $11)) 19... Qxc6 {[%emt 0:04:34]} 20. Nxf6+ {[%emt 0:00:00][%mdl 64] Overworked Piece} Qxf6 {[%emt 0:00:12]} 21. Qxc5 {[%emt 0:00:00]} Bf5 {[%emt 0:09:51]} 22. Bd3 {[%emt 0:00:00]} (22. c3 $16) 22... Bxd3 $11 {[%emt 0:02:52]} 23. cxd3 {[%emt 0:00:00]} Qxb2 {[%emt 0:00:31]} 24. Rab1 {[%emt 0:00:00]} Qd2 {[%emt 0:01:59]} 25. Red1 {[%emt 0:00:00]} Qe2 {[%emt 0:01:53]} 26. Qb5 {[%emt 0:00:00]} Rfb8 {[%emt 0:02:50]} 27. Re1 {[%emt 0:00:38]} Qa2 {[%emt 0:01:57]} 28. Re7 {[%emt 0:02:02]} b6 {[%emt 0:02:50]} 29. Qb3 {[%emt 0:01:45]} Qxb3 {[%emt 0:00:19]} 30. Rxb3 {[%emt 0:00:05][%mdl 4096] Endgame KRR-KRR} Rd8 {[%emt 0:00:12]} (30... Kf8 $11 31. Re4 Rb7) 31. Kf1 {[%emt 0:02:00]} (31. Rxb6 $14 Rd4 32. Rbb7) 31... Rac8 {[%emt 0:03:19]} 32. Ke2 {[%emt 0:00:13]} Rc2+ {[%emt 0:00:41]} 33. Ke3 {[%emt 0:00:04]} Rd6 {[%emt 0:00:59]} 34. Re8+ {[%emt 0:00:45]} Kh7 {[%emt 0:00:01]} 35. g4 {[%emt 0:02:15]} Ra2 {[%emt 0:00:42]} 36. Re4 $1 {[%emt 0:00:05]} g5 {[%emt 0:02:35]} 37. Re7 {[%emt 0:01:37]} (37. Rb1 $1 $15) 37... Kg7 {[%emt 0:00:58]} ({Don't play} 37... Rxa4 $6 38. Rxf7+ Kg6 39. Rb7 $11) 38. Re4 {[%emt 0:00:22]} Rf6 {[%emt 0:00:22] Black is more active.} 39. f4 {[%emt 0:00:30]} (39. f3 $17 {was worth a try.}) 39... Rh2 {[%emt 0:00:41]} (39... gxf4+ $19 40. Kf3 Rh2 41. Rxf4 Rxh3+ 42. Ke4 Rd6) 40. fxg5 $17 {[%emt 0:00:36]} Rxh3+ {[%emt 0:00:13]} 41. Kd4 {[%emt 0:00:03]} ({Better is} 41. Kd2 hxg5 42. Re5) 41... hxg5 {[%emt 0:00:21]} 42. Re5 {[%emt 0:00:12]} Rf4+ {[%emt 0:01:28]} 43. Re4 {[%emt 0:00:25]} Rf6 {[%emt 0:00:42]} 44. Re5 $1 {[%emt 0:00:12] [#]} Rd6+ $1 {[%emt 0:07:24]} 45. Rd5 {[%emt 0:01:02]} (45. Kc4 $142) 45... Rxd5+ $19 {[%emt 0:01:39]} 46. Kxd5 {[%emt 0:00:04][%cal Od5c6] [#]} Rg3 $1 {[%emt 0:00:09]} 47. Ke5 $2 {[%emt 0:01:31]} (47. Rxb6 {keeps fighting.} Rxg4 48. d4) 47... Rxg4 {[%emt 0:02:06]} 48. Rxb6 {[%emt 0:00:29]} (48. d4 {only move.} f6+ 49. Kd5) 48... Rxa4 {[%emt 0:00:28]} 49. d4 {[%emt 0:00:21]} Rb4 {[%emt 0:04:47] Weighted Error Value: White=0.42/Black=0.42} 0-1

[Event "28th Bosnjaci Open 2024"]
[Site "Bosnjaci"]
[Date "2024.01.09"]
[Round "9.20"]
[White "Pusara, Mihailo"]
[Black "Tukovic, Dario"]
[Result "1/2-1/2"]
[ECO "C77"]
[WhiteElo "1928"]
[BlackElo "2132"]
[Annotator "TA"]
[PlyCount "132"]
[EventDate "2024.01.02"]
[EventType "swiss"]
[EventCountry "CRO"]
[SourceTitle "playchess.com"]
[Source "ChessBase"]
[SourceQuality "1"]
[TimeControl "5400+30"]

{[%evp 16,132,27,20,26,24,22,32,27,16,16,-18,-5,-3,-19,-10,-21,-24,17,29,27,0,0,0,0,0,16,23,18,0,0,-2,0,-12,-10,-54,-17,-29,-32,-28,-27,-45,-25,-35,-29,-29,-18,-20,-8,-8,-7,-7,-7,-264,-12,-12,-8,-8,-12,-12,-12,-12,0,-6,0,0,0,-12,0,-4,0,0,0,0,0,0,0,0,0,0,0,0,0,0,0,0,0,0,0,0,0,0,0,0,0,0,0,0,0,0,0,0,0,0,0,0,0,0,0,0,0,0,0,0,0,0,0,0,0]} 1. e4 {[%emt 0:05:55]} e5 {[%emt 0:00:09]} 2. Nf3 {[%emt 0:00:06]} Nc6 {[%emt 0:00:06]} 3. Bb5 {[%emt 0:00:05]} a6 {[%emt 0:00:08]} 4. Ba4 {[%emt 0:00:04]} Nf6 {[%emt 0:00:09]} 5. d3 {[%emt 0:00:04]} d6 {[%emt 0:00:16]} 6. c3 {[%emt 0:00:14]} g6 {[%emt 0:00:09]} 7. O-O {[%emt 0:00:07]} Bg7 {[%emt 0:00:06]} 8. Re1 {[%emt 0:00:07]} O-O {[%emt 0:00:30]} 9. h3 {[%emt 0:00:31]} b5 {[%emt 0:01:08] C77: Ruy Lopez: 3...a6 4 Ba4 Nf6, unusual lines.} 10. Bc2 {[%emt 0:00:09]} Bb7 {[%emt 0:01:00]} 11. a4 {[%emt 0:02:32]} b4 {[%emt 0:00:19] White is slightly better.} 12. Nbd2 {[%emt 0:01:59] [#]} Rb8 $146 {[%emt 0:02:54]} ({Predecessor:} 12... a5 13. d4 bxc3 14. bxc3 exd4 15. Nxd4 Nd7 16. N2f3 Nde5 17. Rb1 Nxf3+ 18. Qxf3 Rb8 {½-½ Mammadova,G (2313)-Atalik,E (2382) TUR-chT Kocaeli 2015 (1.1)}) 13. d4 {[%emt 0:04:00]} bxc3 {[%emt 0:03:11]} 14. bxc3 {[%emt 0:00:04]} exd4 {[%emt 0:00:13]} 15. cxd4 {[%emt 0:00:10]} Nb4 {[%emt 0:00:15]} 16. Ba3 {[%emt 0:04:34]} Nxc2 {[%emt 0:13:00]} 17. Qxc2 {[%emt 0:00:06]} Re8 {[%emt 0:00:41][%cal Oc7c5]} 18. Rac1 {[%emt 0:01:56]} Rc8 {[%emt 0:00:49]} 19. Rb1 {[%emt 0:10:33]} Ba8 {[%emt 0:01:37]} 20. Qd3 {[%emt 0:03:53]} a5 {[%emt 0:03:24]} 21. d5 {[%emt 0:03:50] Prevents Bc6} c6 {[%emt 0:03:53][%cal Rc6d5]} 22. dxc6 {[%emt 0:10:20]} (22. Nc4 {seems wilder.} cxd5 23. Nxd6 dxe4 24. Qb3) 22... Bxc6 {[%emt 0:00:24]} 23. Bxd6 {[%emt 0:11:33]} Bxa4 {[%emt 0:04:15] [#] ...Bc2 is the strong threat.} 24. Nc4 {[%emt 0:02:10]} Bc6 {[%emt 0:21:37][%cal Rc6e4]} 25. Nfd2 {[%emt 0:06:45]} Nd7 {[%emt 0:02:49]} 26. Ba3 {[%emt 0:14:25]} Ne5 {[%emt 0:03:11]} 27. Nxe5 {[%emt 0:02:03]} Bxe5 {[%emt 0:01:11]} 28. Qxd8 {[%emt 0:01:37]} Rcxd8 {[%emt 0:02:52]} 29. Nc4 {[%emt 0:08:03]} Bc3 {[%emt 0:15:12][%csl LRe1,LRe4][%cal Oc6e4] A strong pair of Bishops.} 30. Rec1 {[%emt 0:00:16]} Bxe4 {[%emt 0:00:15]} 31. Rb5 {[%emt 0:00:15] [#]} Bb4 {[%emt 0:06:11]} 32. Bxb4 {[%emt 0:00:14]} axb4 {[%emt 0:00:04]} 33. Rxb4 {[%emt 0:00:15]} Rd4 {[%emt 0:03:02]} 34. Rb3 $2 {[%emt 0:02:16][%mdl 8192]} (34. Ra4 $11 {and White has nothing to worry.}) 34... Bd5 $2 {[%emt 0:04:52]} (34... Rc8 $19 35. Rbc3 Rd3) 35. Rbc3 $11 {[%emt 0:00:26] The position is equal.} Re2 {[%emt 0:00:39]} 36. Ne3 {[%emt 0:01:35]} Be6 {[%emt 0:01:42]} 37. R3c2 {[%emt 0:00:31]} Rxc2 {[%emt 0:00:28]} 38. Rxc2 {[%emt 0:00:04][%mdl 4096] Endgame KRB-KRN} Ra4 {[%emt 0:00:31]} 39. Kh2 {[%emt 0:01:51]} Kg7 {[%emt 0:00:07]} 40. g3 {[%emt 0:01:31]} g5 {[%emt 0:00:48]} 41. Rd2 {[%emt 0:00:12]} Ra6 {[%emt 0:00:38]} 42. Ng2 {[%emt 0:01:00]} f5 {[%emt 0:01:09]} 43. h4 {[%emt 0:00:25]} h6 {[%emt 0:00:15]} 44. hxg5 {[%emt 0:00:46]} hxg5 {[%emt 0:00:02]} 45. f4 {[%emt 0:01:22]} g4 {[%emt 0:02:08]} 46. Kg1 {[%emt 0:00:03]} Ra3 {[%emt 0:02:08]} 47. Re2 {[%emt 0:00:17]} Kf6 {[%emt 0:00:36]} 48. Ne3 {[%emt 0:01:09]} Rd3 {[%emt 0:01:25]} 49. Kf2 {[%emt 0:00:05]} Bd7 {[%emt 0:00:51]} 50. Rc2 {[%emt 0:00:32]} Rd6 {[%emt 0:01:07]} 51. Ke2 {[%emt 0:00:42]} Bc6 {[%emt 0:00:38]} 52. Rb2 {[%emt 0:00:58]} Bf3+ {[%emt 0:00:14]} 53. Kf2 {[%emt 0:00:04]} Be4 {[%emt 0:00:20]} 54. Re2 {[%emt 0:00:31]} Bf3 {[%emt 0:01:01]} 55. Rb2 {[%emt 0:00:44]} Ra6 {[%emt 0:00:23]} 56. Rd2 {[%emt 0:00:39]} Be4 {[%emt 0:00:51]} 57. Re2 {[%emt 0:02:22]} Re6 {[%emt 0:00:11]} 58. Rb2 {[%emt 0:00:00]} Kf7 {[%emt 0:00:48]} 59. Rb5 {[%emt 0:00:00]} Kf6 {[%emt 0:00:33]} 60. Nd5+ {[%emt 0:00:00]} Kg6 {[%emt 0:00:32]} 61. Ne3 {[%emt 0:00:08]} Rd6 {[%emt 0:00:29]} 62. Rb2 {[%emt 0:00:31]} Kf6 {[%emt 0:00:31]} 63. Re2 Rd4 {[%emt 0:00:30]} 64. Rb2 Rd6 {[%emt 0:00:30]} 65. Re2 Rd4 {[%emt 0:00:30]} 66. Rb2 Rd6 {[%emt 0:00:30] Weighted Error Value: White=0.14 (very precise) /Black=0.15 (very precise)} 1/2-1/2